fUSD/lending_fUSD_20260122
["ID","MTS","AMOUNT","RATE_DAILY","PERIOD"]
[403029760,1769088634651,-250.0,0.00017777,2]
[403029761,1769088634661,-250.0,0.00017777,2]
[403029762,1769088634671,-250.0,0.00017777,2]
[403029763,1769088634682,-151.0,0.00017777,2]
[403029764,1769088634692,-172.38117246,0.00017777,2]
[403029765,1769088634702,-151.0,0.00017777,2]
[403029766,1769088634714,-151.0,0.00017777,2]
[403029767,1769088634724,-151.0,0.00017777,2]
[403029768,1769088634734,-151.0,0.00017777,2]
[403029769,1769088634746,-151.0,0.00017777,2]
[403029770,1769088634757,-500.0,0.00017777,2]
[403029771,1769088634767,-151.0,0.00017777,2]
[403029772,1769088634777,-500.0,0.00017777,2]
[403029773,1769088634788,-743.50770149,0.00017777,2]
[403029774,1769088634797,-151.0,0.00017777,2]
[403029775,1769088634808,-500.0,0.00017777,2]
[403029776,1769088634817,-151.0,0.00017777,2]
[403029777,1769088634827,-500.0,0.00017777,2]
[403029778,1769088634838,-151.0,0.00017777,2]
[403029779,1769088634847,-500.0,0.00017777,2]
[403029780,1769088634857,-151.0,0.00017777,2]
[403029781,1769088634867,-500.0,0.00017777,2]
[403029782,1769088634876,-151.0,0.00017777,2]
[403029783,1769088634886,-3210.0,0.00017777,2]
[403029784,1769088634895,-500.0,0.00017777,2]
[403029785,1769088634905,-500.0,0.00017777,2]
[403029786,1769088634915,-500.0,0.00017777,2]
[403029787,1769088634924,-500.0,0.00017777,2]
[403029788,1769088634934,-500.0,0.00017777,2]
[403029789,1769088634943,-500.0,0.00017777,2]
[403029790,1769088635354,-1290.13035104,0.00017777,2]
[403029791,1769088635381,-762.09,0.00017782,2]
[403029792,1769088635391,-1100.0,0.000178,6]
[403029793,1769088635400,-200.0,0.00017809,2]
[403029794,1769088635410,-350.0,0.00017809,2]
[403029795,1769088635419,-500.0,0.00017809,2]
[403029796,1769088635428,-500.0,0.00017809,2]
[403029797,1769088635437,-150.0,0.00017809,2]
[403029798,1769088635447,-156.18320436,0.00017809,2]
[403029799,1769088635456,-150.0,0.00017809,2]
[403029800,1769088635466,-500.0,0.00017809,2]
[403029801,1769088635475,-194.0,0.00017819,2]
[403029802,1769088635485,-223.85595231,0.00017831,2]
[403029803,1769088635494,-9000.0,0.00017832,2]
[403029804,1769088635504,-9552.16786547,0.00017832,2]
[403029805,1769088635513,-510.98377513,0.00017863,2]
[403029806,1769088635522,-300.0,0.00017863,2]
[403029807,1769088635532,-500.0,0.00017863,2]
[403029808,1769088635541,-200.0,0.00017863,2]
[403029809,1769088635550,-150.0,0.00017863,2]
[403029810,1769088635560,-500.0,0.00017863,2]
[403029811,1769088635570,-9000.0,0.00017887,2]
[403029812,1769088635580,-9905.5980765,0.00017887,2]
[403029813,1769088635591,-508.0,0.0001789,2]
[403029814,1769088635605,-512.28043622,0.000179,2]
[403029815,1769088635615,-1500.0,0.000179,6]
[403029816,1769088635626,-208.52640741,0.000179,2]
[403029817,1769088635636,-500.0,0.00017918,2]
[403029818,1769088635646,-250.0,0.00017918,2]
[403029819,1769088635656,-500.0,0.00017918,2]
[403029820,1769088635666,-9000.0,0.00017942,2]
[403029821,1769088635676,-10272.10520533,0.00017942,2]
[403029822,1769088635686,-350.0,0.00017973,2]
[403029823,1769088635696,-500.0,0.00017973,2]
[403029824,1769088635705,-1272.73,0.00017973,2]
[403029825,1769088635715,-9000.0,0.00017997,2]
[403029826,1769088635724,-10652.17309792,0.00017997,2]
[403029827,1769088635736,-552064.35684537,0.00018,2]
[403029828,1769088635751,-151.0,0.00018,2]
[403029829,1769088635760,-151.0,0.00018,2]
[403029830,1769088635770,-151.0,0.00018,2]
[403029831,1769088635781,-360988.49147153,0.00018,2]
[403029832,1769088636231,-377.31590528,0.00018,2]
[403029833,1769088636244,-2518.52160099,0.00018,2]
[403029834,1769088636262,-1827.19977447,0.00018,2]
[403029835,1769088636273,-72233.7938351,0.00018,2]
[403029836,1769088636283,-11632.51124398,0.00018,2]
[403029837,1769088636295,-422.81516774,0.00018,2]
[403029838,1769088636325,-371.3259998,0.00018,2]
[403029839,1769088636338,-3268.61254982,0.00018,2]
[403029840,1769088636349,-797.59445327,0.00018,2]
[403029841,1769088636360,-1182.23847243,0.00018,2]
[403029842,1769088636375,-658.23230958,0.00018,2]
[403029843,1769088636395,-7396.74035515,0.00018,2]
[403029844,1769088636407,-1671.51544629,0.00018,2]
[403029845,1769088636432,-610.53759736,0.00018,2]
[403029846,1769088636443,-2170.0,0.00018,2]
[403029848,1769088638093,-754.07848955,0.00018,2]
[403029849,1769088638108,-20556.26312643,0.00018,2]
[403029850,1769088638231,-3342.46626735,0.00018,2]
[403029851,1769088638245,-1401.04863351,0.00018,2]
[403029852,1769088638325,-787.36629238,0.00018,2]
[403029853,1769088640252,-327.99999999,0.00015838,2]
[403029854,1769088640264,-2131.05282805,0.00015838,2]
[403029855,1769088640273,-2485.64489174,0.00015838,2]
[403029856,1769088640282,-891.373196,0.000179,2]
[403029857,1769088640292,-3591.92908421,0.00018,2]
[403029858,1769088640317,-369.0,0.00018,2]
[403029859,1769088640329,-11832.38440721,0.00018,2]
[403029860,1769088640365,-13444.87366793,0.00018,2]
[403029861,1769088640377,-19138.23941,0.00018,2]
[403029862,1769088640388,-2447.56425142,0.00018,2]
[403029863,1769088640399,-5653.74009664,0.00018,2]
[403029864,1769088640423,-901.46835185,0.00018,2]
[403029865,1769088640483,-1119.9698822,0.00018,2]
[403029866,1769088640494,-626.36847836,0.00018,2]
[403029895,1769088643278,-151.0,0.00016806,2]
[403029896,1769088643287,-716.81857881,0.00018,2]
[403029931,1769088646108,-1016.74074216,0.00018,2]
[403029936,1769088646168,-13960.82583248,0.00018,2]
[403029939,1769088646225,-1285.8,0.00018,2]
[403029940,1769088646631,-530.23719591,0.00018,2]
[403029941,1769088646642,-2790.4119159,0.00018,2]
[403029942,1769088646658,-3277.67539325,0.00018,2]
[403029943,1769088665596,500.0,0.00015737,2]
[403029944,1769088667811,187.29396545,0.00015737,2]
[403029945,1769088669966,529.4993908,0.00015737,2]
[403029946,1769088670983,500.0,0.00015737,2]
[403029947,1769088671030,500.0,0.00015737,2]
[403029948,1769088671072,500.0,0.00015737,2]
[403029949,1769088671118,500.0,0.00015737,2]
[403029950,1769088671168,500.0,0.00015737,2]
[403029951,1769088671218,500.0,0.00015737,2]
[403029952,1769088671260,166.26875902,0.00015737,2]
[403029953,1769088671291,333.73124098,0.00015737,2]
[403029954,1769088671329,500.0,0.00015737,2]
[403029955,1769088671374,500.0,0.00015737,2]
[403029956,1769088671415,500.0,0.00015737,2]
[403029957,1769088671463,500.0,0.00015737,2]
[403029958,1769088671553,500.0,0.00015737,2]
[403029959,1769088671609,500.0,0.00015737,2]
[403029960,1769088672027,500.0,0.00015737,2]
[403029961,1769088672100,500.0,0.00015737,2]
[403029962,1769088672168,500.0,0.00015737,2]
[403029963,1769088672231,500.0,0.00015737,2]
[403029964,1769088672287,500.0,0.00015737,2]
[403029965,1769088672326,500.0,0.00015737,2]
[403029966,1769088672377,500.0,0.00015737,2]
[403029967,1769088672427,500.0,0.00015737,2]
[403029968,1769088672488,500.0,0.00015737,2]
[403029969,1769088672533,500.0,0.00015737,2]
[403029970,1769088672570,500.0,0.00015737,2]
[403029971,1769088672656,500.0,0.00015737,2]
[403029972,1769088672706,500.0,0.00015737,2]
[403029973,1769088672770,166.27875902,0.00015737,2]
[403029974,1769088672799,333.72124098,0.00015737,2]
[403029975,1769088672844,500.0,0.00015737,2]
[403029976,1769088672894,500.0,0.00015737,2]
[403029977,1769088672958,542.20801782,0.00015737,2]
[403029978,1769088673019,500.0,0.00015737,2]
[403029979,1769088673064,500.0,0.00015737,2]
[403029980,1769088690061,-142793.0,0.00015738,2]
[403029981,1769088694864,-100000.0,0.00015738,2]
[403029982,1769088716421,500.0,0.00015737,2]
[403029983,1769088716723,500.0,0.00015737,2]
[403029984,1769088717011,500.0,0.00015737,2]
[403029985,1769088735189,5624.0807412,0.00015737,2]
[403029986,1769088735214,10000.01,0.00015737,2]
[403029987,1769088735238,420.93074049,0.00015737,2]
[403029988,1769088737466,500.0,0.00015737,2]
[403029989,1769088737539,982.0402849,0.00015737,2]
[403029990,1769088737716,500.0,0.00015737,2]
[403029991,1769088754840,500.0,0.00015737,2]
[403029992,1769088754923,500.0,0.00015737,2]
[403029993,1769088754991,500.0,0.00015737,2]
[403029996,1769088781874,160.0,0.00015737,2]
[403029997,1769088785365,300.0,0.00015737,2]
[403029999,1769088801797,151.0,0.00015735,2]
[403030000,1769088850366,970.6036,0.00015638,2]
[403030001,1769088901275,300.0,0.00015737,2]
[403030002,1769088901327,1200.0,0.00015737,2]
[403030003,1769088901763,243.0,0.00015737,2]
[403030004,1769088905565,2772.43537461,0.00015638,2]
[403030005,1769088905604,8044.48116282,0.00015638,2]
[403030006,1769088917777,1955.52883718,0.00015638,2]
[403030007,1769088917803,8057.96601167,0.00015638,2]
[403030008,1769088939872,500.0,0.00015737,2]
[403030009,1769088940108,500.0,0.00015737,2]
[403030010,1769088940435,500.0,0.00015737,2]
[403030011,1769088940793,442.04398833,0.00015737,2]
[403030012,1769088940823,57.95601167,0.00015737,2]
[403030013,1769088941906,500.0,0.00015737,2]
[403030014,1769088942245,500.0,0.00015737,2]
[403030015,1769088942734,500.0,0.00015737,2]
[403030016,1769088943203,500.0,0.00015737,2]
[403030017,1769088943550,500.0,0.00015737,2]
[403030018,1769088943868,500.0,0.00015737,2]
[403030019,1769088944428,500.0,0.00015737,2]
[403030020,1769088944720,500.0,0.00015737,2]
[403030021,1769088944765,500.0,0.00015737,2]
[403030022,1769088944813,500.0,0.00015737,2]
[403030023,1769088944865,500.0,0.00015737,2]
[403030024,1769088944913,500.0,0.00015737,2]
[403030025,1769088944953,500.0,0.00015737,2]
[403030026,1769088945012,500.0,0.00015737,2]
[403030027,1769088945054,500.0,0.00015737,2]
[403030028,1769088945662,500.0,0.00015737,2]
[403030029,1769088945700,500.0,0.00015737,2]
[403030030,1769088945752,500.0,0.00015737,2]
[403030031,1769088945806,500.0,0.00015737,2]
[403030032,1769088945845,442.05398833,0.00015737,2]
[403030033,1769088945881,57.94601167,0.00015737,2]
[403030034,1769088945929,500.0,0.00015737,2]
[403030035,1769088962351,515.89796924,0.00015737,2]
[403030036,1769088962751,300.0,0.00015737,2]
[403030037,1769088969028,1323.02635223,0.00015737,5]
[403030038,1769088996562,500.0,0.00015737,2]
[403030039,1769089020461,341.78103474,0.00015737,2]
[403030044,1769089148531,500.0,0.00015737,2]
[403030045,1769089148821,186.60912116,0.00015737,2]
[403030046,1769089162486,500.0,0.00015737,2]
[403030047,1769089162586,500.0,0.00015737,2]
[403030048,1769089162639,500.0,0.00015737,2]
[403030049,1769089162694,500.0,0.00015737,2]
[403030050,1769089162752,500.0,0.00015737,2]
[403030051,1769089162810,500.0,0.00015737,2]
[403030052,1769089162867,627.08152921,0.00015737,2]
[403030053,1769089163150,500.0,0.00015737,2]
[403030054,1769089163362,500.0,0.00015737,2]
[403030055,1769089178285,200.0,0.00015312,2]
[403030056,1769089201863,1200.0,0.00015737,2]
[403030057,1769089203761,218.25,0.00016,10]
[403030058,1769089228077,500.0,0.00015737,2]
[403030059,1769089228245,240.91964526,0.00015737,2]
[403030060,1769089233249,249.27145992,0.000226,120]
[403030061,1769089234620,-168.59194958,0.00015738,2]
[403030062,1769089243238,329.77468872,0.00015737,2]
[403030063,1769089243262,170.22531128,0.00015737,2]
[403030064,1769089243503,500.0,0.00015737,2]
[403030065,1769089243744,500.0,0.00015737,2]
[403030066,1769089280933,500.0,0.00015737,2]
[403030067,1769089281201,500.0,0.00015737,2]
[403030068,1769089295331,1668.634,0.00015423,2]
[403030069,1769089301699,500.0,0.00015737,2]
[403030070,1769089304016,5661.15068872,0.00015638,2]
[403030071,1769089304041,3491.98352639,0.00015638,2]
[403030072,1769089312623,184.0,0.00015456,2]
[403030073,1769089313660,184.0,0.00015705,2]
[403030074,1769089321822,300.0,0.00015737,2]
[403030075,1769089326792,322.6107,0.00015729,2]
[403030076,1769089327290,496.17833608,0.00015738,2]
[403030077,1769089329488,5021.23743753,0.00015729,2]
[403030078,1769089329511,3978.76256247,0.00015729,2]
[403030079,1769089329994,500.0,0.00015729,2]
[403030080,1769089330721,500.0,0.00015729,2]
[403030081,1769089331220,500.0,0.00015729,2]
[403030082,1769089331828,500.0,0.00015729,2]
[403030083,1769089332185,250.0,0.00015729,2]
[403030084,1769089332462,500.0,0.00015729,2]
[403030085,1769089332819,250.0,0.00015729,2]
[403030086,1769089333092,500.0,0.00015729,2]
[403030087,1769089333463,250.0,0.00015729,2]
[403030088,1769089333686,500.0,0.00015729,2]
[403030089,1769089334085,250.0,0.00015729,2]
[403030090,1769089334286,500.0,0.00015729,2]
[403030091,1769089335300,500.0,0.00015729,2]
[403030092,1769089335351,500.0,0.00015729,2]
[403030093,1769089335575,21.24743753,0.00015729,2]
[403030094,1769089335601,478.75256247,0.00015729,2]
[403030095,1769089335637,500.0,0.00015729,2]
[403030096,1769089336180,500.0,0.00015729,2]
[403030097,1769089336258,500.0,0.00015729,2]
[403030098,1769089336788,500.0,0.00015729,2]
[403030099,1769089337041,500.0,0.00015729,2]
[403030100,1769089337723,500.0,0.00015729,2]
[403030101,1769089338364,500.0,0.00015729,2]
[403030102,1769089338971,500.0,0.00015729,2]
[403030103,1769089339316,823.77908852,0.00015729,2]
[403030104,1769089339718,4697.47834901,0.00015729,2]
[403030105,1769089339744,4513.86964084,0.00015729,2]
[403030106,1769089340050,500.0,0.00015729,2]
[403030107,1769089340344,500.0,0.00015729,2]
[403030108,1769089340472,151.0,0.00015729,2]
[403030109,1769089340513,174.61919141,0.00015729,2]
[403030110,1769089341169,151.0,0.00015729,2]
[403030111,1769089341257,500.0,0.00015729,2]
[403030112,1769089341850,151.0,0.00015729,2]
[403030113,1769089341902,500.0,0.00015729,2]
[403030114,1769089342237,151.0,0.00015729,2]
[403030115,1769089342328,500.0,0.00015729,2]
[403030116,1769089342840,151.0,0.00015729,2]
[403030117,1769089342932,500.0,0.00015729,2]
[403030118,1769089343470,151.0,0.00015729,2]
[403030119,1769089344101,151.0,0.00015729,2]
[403030120,1769089344716,151.0,0.00015729,2]
[403030121,1769089345265,257.181034,0.00015659,2]
[403030122,1769089345366,151.0,0.00015729,2]
[403030123,1769089345396,325.26940848,0.00015737,2]
[403030125,1769089346024,151.0,0.00015729,2]
[403030126,1769089346684,151.0,0.00015729,2]
[403030127,1769089347287,68.07072527,0.00015729,2]
[403030128,1769089347312,82.92927473,0.00015729,2]
[403030129,1769089347914,151.0,0.00015729,2]
[403030130,1769089348370,250.0,0.00015729,2]
[403030131,1769089348713,500.0,0.00015729,2]
[403030132,1769089348973,250.0,0.00015729,2]
[403030133,1769089349284,343.10236963,0.00015729,2]
[403030134,1769089349343,500.0,0.00015729,2]
[403030135,1769089349580,250.0,0.00015729,2]
[403030136,1769089349962,500.0,0.00015729,2]
[403030137,1769089350170,312.60820425,0.00015729,2]
[403030138,1769089350605,500.0,0.00015729,2]
[403030140,1769089352235,500.0,0.00015729,2]
[403030141,1769089352555,500.0,0.00015729,2]
[403030142,1769089352828,500.0,0.00015729,2]
[403030143,1769089353177,500.0,0.00015729,2]
[403030144,1769089353732,500.0,0.00015729,2]
[403030145,1769089354379,500.0,0.00015729,2]
[403030146,1769089355025,370.23847881,0.00015729,2]
[403030147,1769089355973,500.0,0.00015729,2]
[403030148,1769089356596,500.0,0.00015729,2]
[403030166,1769089362932,250.0,0.00015729,2]
[403030167,1769089363280,1740.13167258,0.00015729,2]
[403030168,1769089363305,1469.86832742,0.00015729,2]
[403030169,1769089363512,250.0,0.00015729,2]
[403030170,1769089365479,151.0,0.00015729,2]
[403030171,1769089366123,151.0,0.00015729,2]
[403030172,1769089366768,151.0,0.00015729,2]
[403030173,1769089367383,151.0,0.00015729,2]
[403030174,1769089368536,154.11004958,0.00015729,2]
[403030175,1769089381866,300.0,0.00015737,2]
[403030176,1769089385204,-154.69979071,0.00015738,2]
[403030177,1769089388052,-213.91614905,0.00015738,2]
[403030178,1769089392104,-305.92509768,0.00015738,2]
[403030179,1769089393291,500.0,0.00015737,2]
[403030180,1769089394570,-267.8892582,0.00015738,2]
[403030181,1769089398500,421.04734503,0.00015638,2]
[403030182,1769089401763,896.20378326,0.00015638,2]
[403030184,1769089414610,-160.79240547,0.00015738,2]
[403030193,1769089416784,5404.78049471,0.00015638,2]
[403030194,1769089416810,4696.3164825,0.00015638,2]
[403030195,1769089417142,-155.18421542,0.00015738,2]
[403030196,1769089418694,-274.13970436,0.00015738,2]
[403030198,1769089419567,500.0,0.00015737,2]
[403030199,1769089419913,500.0,0.00015737,2]
[403030200,1769089420252,500.0,0.00015737,2]
[403030201,1769089420594,153.44624052,0.00015737,2]
[403030202,1769089421798,500.0,0.00015737,2]
[403030209,1769089469372,500.0,0.00015737,2]
[403030215,1769089493376,500.0,0.00015737,2]
[403030216,1769089493620,500.0,0.00015737,2]
[403030217,1769089493863,500.0,0.00015737,2]
[403030218,1769089501669,300.0,0.00015737,2]
[403030219,1769089501875,850.24727698,0.00015737,2]
[403030220,1769089501901,349.75272302,0.00015737,2]
[403030221,1769089501935,300.0,0.00015737,2]
[403030222,1769089501976,300.0,0.00015737,2]
[403030223,1769089503670,300.0,0.00015737,2]
[403030224,1769089504760,247.0,0.00015737,2]
[403030225,1769089507298,200.0,0.00015738,2]
[403030226,1769089509257,518.64375168,0.00015737,2]
[403030229,1769089540158,-5011.73048206,0.00015738,2]
[403030234,1769089560528,229.14366067,0.00015737,2]
[403030251,1769089598680,500.0,0.00015737,2]
[403030252,1769089598961,500.0,0.00015737,2]
[403030253,1769089599207,500.0,0.00015737,2]
[403030254,1769089603688,507.4251083,0.00015737,2]
[403030255,1769089621490,300.0,0.00015737,2]
[403030256,1769089622751,500.0,0.00015737,2]
[403030257,1769089622988,500.0,0.00015737,2]
[403030258,1769089625007,507.20276571,0.00015729,2]
[403030259,1769089625241,604.42150929,0.00015737,2]
[403030260,1769089637772,150.0,0.00015737,2]
[403030261,1769089654690,200.0,0.000159,5]
[403030262,1769089681572,300.0,0.00015737,2]
[403030263,1769089681792,300.0,0.00015737,2]
[403030264,1769089682634,300.0,0.00015737,2]
[403030266,1769089690765,300.0,0.000159,5]
[403030269,1769089694020,2086.42048133,0.00015638,2]
[403030270,1769089694044,7014.8392453,0.00015638,2]
[403030271,1769089700932,150.0,0.00015737,2]
[403030272,1769089713355,500.0,0.00015737,2]
[403030274,1769089719626,2335.1707547,0.00015638,2]
[403030275,1769089719651,10000.01,0.00015638,2]
[403030276,1769089719676,10000.01,0.00015638,2]
[403030277,1769089719700,10000.01,0.00015638,2]
[403030278,1769089719726,10000.01,0.00015638,2]
[403030279,1769089719757,10000.01,0.00015638,2]
[403030280,1769089719785,10000.01,0.00015638,2]
[403030281,1769089719812,10000.01,0.00015638,2]
[403030282,1769089719844,10000.01,0.00015638,2]
[403030283,1769089719873,10000.01,0.00015638,2]
[403030299,1769089749681,-207.10004465,0.00015638,2]
[403030300,1769089750642,-6617.24556026,0.00015638,2]
[403030301,1769089750773,-10000.01,0.00015638,2]
[403030302,1769089752059,-10000.01,0.00015638,2]
[403030303,1769089752384,-10000.01,0.00015638,2]
[403030304,1769089753045,-10000.01,0.00015638,2]
[403030305,1769089753268,-10000.01,0.00015638,2]
[403030306,1769089753314,-10000.01,0.00015638,2]
[403030307,1769089753342,-10000.01,0.00015638,2]
[403030308,1769089753367,-10000.01,0.00015638,2]
[403030309,1769089755100,-10000.01,0.00015638,2]
[403030310,1769089755930,-10000.01,0.00015638,2]
[403030312,1769089776030,1030.61258171,0.00015624,2]
[403030313,1769089801524,300.0,0.00015637,2]
[403030314,1769089801560,1200.0,0.00015637,2]
[403030315,1769089801712,300.0,0.00015637,2]
[403030316,1769089803425,280.0,0.00015638,2]
[403030320,1769089811377,1293.52,0.00015628,2]
[403030321,1769089811587,1293.52,0.00015628,2]
[403030334,1769089832043,-0.91196295,0.00015638,2]
[403030335,1769089832055,-23981.56797666,0.00015638,2]
[403030336,1769089832066,-3096.30824948,0.00015638,2]
[403030337,1769089832078,-588.97499999,0.00015638,2]
[403030338,1769089832120,-741.54979015,0.00015638,2]
[403030339,1769089832132,-273.08643962,0.00015638,2]
[403030340,1769089832144,-100366.36699551,0.00015638,2]
[403030341,1769089832158,-14637.7469637,0.00015638,2]
[403030342,1769089832170,-13559.19514689,0.00015638,2]
[403030343,1769089832181,-29052.7863677,0.00015638,2]
[403030344,1769089832194,-289.56,0.00015638,2]
[403030345,1769089832206,-658.19883048,0.00015638,2]
[403030346,1769089832217,-300.0,0.00015638,2]
[403030347,1769089832241,-2279.48107587,0.00015638,2]
[403030348,1769089832253,-728.91649147,0.00015638,2]
[403030349,1769089832264,-289.60374607,0.00015638,2]
[403030350,1769089832275,-1095.57428476,0.00015638,2]
[403030360,1769089838076,-3464.71194795,0.00015638,2]
[403030361,1769089838087,-2119.33590757,0.00015638,2]
[403030362,1769089838100,-429.6758979,0.00015638,2]
[403030363,1769089838113,-1775.0243876,0.00015638,2]
[403030364,1769089838124,-2467.3432377,0.00015638,2]
[403030365,1769089838183,-726.4,0.00015638,2]
[403030393,1769089840483,-474.48411754,0.00015638,2]
[403030409,1769089843399,-2037.85779033,0.00015638,2]
[403030410,1769089843414,-609.63561384,0.00015638,2]
[403030411,1769089843428,-540.17329968,0.00015638,2]
[403030417,1769089846071,-9696.99957069,0.00015638,2]
[403030418,1769089846172,-1690.55247352,0.00015638,2]
[403030419,1769089846393,-906.7776415,0.00015638,2]
[403030420,1769089846405,-4832.23922043,0.00015638,2]
[403030421,1769089862131,300.0,0.00015637,2]
[403030422,1769089862483,300.0,0.00015637,2]
[403030430,1769089892664,1559.849,0.00015325,2]
[403030431,1769089917821,166.66,0.00015156,2]
[403030432,1769089918049,166.66,0.00015475,2]
[403030433,1769089927120,1809.18841829,0.00015588,2]
[403030434,1769089927146,7359.6308409,0.00015588,2]
[403030435,1769089933199,151.0,0.00015635,2]
[403030441,1769090041905,300.0,0.00015637,2]
[403030442,1769090041937,300.0,0.00015637,2]
[403030443,1769090044862,1889.3791591,0.00013143,2]
[403030444,1769090044889,4659.8708409,0.00013143,2]
[403030445,1769090082754,5340.1391591,0.00015538,2]
[403030446,1769090082779,4987.6535884,0.00015538,2]
[403030447,1769090093927,200.0,0.00014825,2]
[403030448,1769090101163,300.0,0.00015637,2]
[403030449,1769090101544,1200.0,0.00015637,2]
[403030459,1769090181056,500.0,0.00015637,2]
[403030461,1769090181121,500.0,0.00015637,2]
[403030463,1769090181180,500.0,0.00015637,2]
[403030464,1769090181243,500.0,0.00015637,2]
[403030465,1769090181298,500.0,0.00015637,2]
[403030466,1769090181351,500.0,0.00015637,2]
[403030467,1769090181399,312.3564116,0.00015637,2]
[403030468,1769090181433,187.6435884,0.00015637,2]
[403030469,1769090181484,500.0,0.00015637,2]
[403030470,1769090181529,500.0,0.00015637,2]
[403030471,1769090181596,549.63097849,0.00015637,2]
[403030472,1769090181644,500.0,0.00015637,2]
[403030473,1769090181693,500.0,0.00015637,2]
[403030474,1769090181746,500.0,0.00015637,2]
[403030475,1769090181798,500.0,0.00015637,2]
[403030476,1769090181841,500.0,0.00015637,2]
[403030477,1769090181895,500.0,0.00015637,2]
[403030478,1769090181944,500.0,0.00015637,2]
[403030479,1769090181991,500.0,0.00015637,2]
[403030480,1769090182040,500.0,0.00015637,2]
[403030481,1769090182093,500.0,0.00015637,2]
[403030482,1769090182142,500.0,0.00015637,2]
[403030483,1769090182195,500.0,0.00015637,2]
[403030484,1769090182243,500.0,0.00015637,2]
[403030485,1769090182304,500.0,0.00015637,2]
[403030486,1769090182340,500.0,0.00015637,2]
[403030487,1769090182828,500.0,0.00015637,2]
[403030488,1769090183371,262.73543311,0.00015637,2]
[403030489,1769090183401,237.26456689,0.00015637,2]
[403030490,1769090183439,500.0,0.00015637,2]
[403030491,1769090183483,500.0,0.00015637,2]
[403030492,1769090183621,500.0,0.00015637,2]
[403030493,1769090196928,500.0,0.00015637,2]
[403030494,1769090197041,500.0,0.00015637,2]
[403030495,1769090197083,500.0,0.00015637,2]
[403030496,1769090197124,500.0,0.00015637,2]
[403030497,1769090197245,500.0,0.00015637,2]
[403030498,1769090197326,500.0,0.00015637,2]
[403030499,1769090197385,500.0,0.00015637,2]
[403030500,1769090197430,500.0,0.00015637,2]
[403030501,1769090197479,500.0,0.00015637,2]
[403030502,1769090197525,500.0,0.00015637,2]
[403030503,1769090197601,500.0,0.00015637,2]
[403030505,1769090222214,300.0,0.00015637,2]
[403030506,1769090229851,500.0,0.00015629,2]
[403030507,1769090230432,500.0,0.00015629,2]
[403030508,1769090231043,500.0,0.00015629,2]
[403030509,1769090231506,200.0,0.00015629,2]
[403030510,1769090231666,500.0,0.00015629,2]
[403030511,1769090232263,500.0,0.00015629,2]
[403030512,1769090239472,200.0,0.00015629,2]